[Event "Early-Titled-Tuesday-Blitz-September-26-2023"]
[Site "Chess.com"]
[Date "2023.09.26"]
[Round "2"]
[White "MMAHDI2013"]
[Black "FoxOnTheRun97"]
[Result "1-0"]
[WhiteElo "2266"]
[BlackElo "2552"]
[TimeControl "180+1"]
[EndTime "8:18:35 PDT"]
[Termination "MMAHDI2013 won by checkmate"]

1. c4 {[%clk 0:03:00.9]} 1... Nf6 {[%clk 0:02:59]} 2. Nf3 {[%clk 0:02:59]} 2...
c6 {[%clk 0:02:57.7]} 3. g3 {[%clk 0:02:58.1]} 3... d5 {[%clk 0:02:57.8]} 4. Bg2
{[%clk 0:02:58.7]} 4... Bf5 {[%clk 0:02:56.7]} 5. Qb3 {[%clk 0:02:58.4]} 5...
Qb6 {[%clk 0:02:56.3]} 6. d3 {[%clk 0:02:58.1]} 6... e6 {[%clk 0:02:55.5]} 7.
Be3 {[%clk 0:02:57.7]} 7... dxc4 {[%clk 0:02:28]} 8. Qxc4 {[%clk 0:02:55.2]}
8... Qxb2 {[%clk 0:02:16.9]} 9. Bd4 {[%clk 0:02:54]} 9... Qb4+ {[%clk
0:01:54.7]} 10. Nfd2 {[%clk 0:02:52.4]} 10... Qxc4 {[%clk 0:01:40.6]} 11. Nxc4
{[%clk 0:02:53.3]} 11... Bb4+ {[%clk 0:01:33.4]} 12. Bc3 {[%clk 0:02:07]} 12...
Bxc3+ {[%clk 0:01:27.4]} 13. Nxc3 {[%clk 0:02:07.9]} 13... Nd5 {[%clk 0:01:28]}
14. Nxd5 {[%clk 0:02:03.5]} 14... exd5 {[%clk 0:01:28.9]} 15. Nd6+ {[%clk
0:02:03.4]} 15... Ke7 {[%clk 0:01:20.9]} 16. Nxf5+ {[%clk 0:02:04.3]} 16... Kf6
{[%clk 0:01:21]} 17. Ne3 {[%clk 0:02:03.7]} 17... Re8 {[%clk 0:01:14.9]} 18. Kd2
{[%clk 0:02:01.6]} 18... Nd7 {[%clk 0:01:10.6]} 19. Rab1 {[%clk 0:02:00.2]}
19... Rab8 {[%clk 0:01:10.1]} 20. Rhc1 {[%clk 0:02:00.1]} 20... g6 {[%clk
0:01:02.3]} 21. Nc2 {[%clk 0:01:57.9]} 21... Ke5 {[%clk 0:00:53.2]} 22. d4+
{[%clk 0:01:56.6]} 22... Kd6 {[%clk 0:00:52.1]} 23. e3 {[%clk 0:01:57.5]} 23...
h5 {[%clk 0:00:49.9]} 24. h4 {[%clk 0:01:55.6]} 24... Nb6 {[%clk 0:00:47.1]} 25.
Bf1 {[%clk 0:01:53]} 25... Kc7 {[%clk 0:00:28.2]} 26. Rb3 {[%clk 0:01:40.3]}
26... a5 {[%clk 0:00:19.9]} 27. Rcb1 {[%clk 0:01:35.6]} 27... Nc8 {[%clk
0:00:19.8]} 28. a4 {[%clk 0:01:33.1]} 28... Nd6 {[%clk 0:00:19.6]} 29. Bd3
{[%clk 0:01:32]} 29... Re7 {[%clk 0:00:16.3]} 30. Na3 {[%clk 0:01:28.9]} 30...
Rbe8 {[%clk 0:00:13.9]} 31. Rc1 {[%clk 0:01:28.5]} 31... Kb8 {[%clk 0:00:11.4]}
32. Rc5 {[%clk 0:01:24.4]} 32... Kc7 {[%clk 0:00:07.6]} 33. Rxa5 {[%clk
0:01:23.4]} 33... Rb8 {[%clk 0:00:06.8]} 34. Rc5 {[%clk 0:01:21.6]} 34... Kd7
{[%clk 0:00:07.4]} 35. a5 {[%clk 0:01:15.6]} 35... Ra8 {[%clk 0:00:07.6]} 36.
Rb6 {[%clk 0:01:13.3]} 36... Ra7 {[%clk 0:00:07.5]} 37. f3 {[%clk 0:01:10]}
37... Re8 {[%clk 0:00:07]} 38. Nc2 {[%clk 0:01:01.4]} 38... Rea8 {[%clk
0:00:06.9]} 39. a6 {[%clk 0:01:01.9]} 39... bxa6 {[%clk 0:00:04.3]} 40. Rcxc6
{[%clk 0:01:01]} 40... Nc8 {[%clk 0:00:03]} 41. Rxa6 {[%clk 0:01:01.1]} 41...
Rxa6 {[%clk 0:00:03.4]} 42. Rxa6 {[%clk 0:01:02]} 42... Rb8 {[%clk 0:00:03.9]}
43. Ra3 {[%clk 0:01:01.6]} 43... Nd6 {[%clk 0:00:04]} 44. Rc3 {[%clk 0:01:00.6]}
44... Rb2 {[%clk 0:00:04.1]} 45. e4 {[%clk 0:00:58.9]} 45... dxe4 {[%clk
0:00:04]} 46. fxe4 {[%clk 0:00:59.8]} 46... Rb4 {[%clk 0:00:04.1]} 47. e5 {[%clk
0:00:59.7]} 47... Ne8 {[%clk 0:00:02.3]} 48. Nxb4 {[%clk 0:00:59.6]} 48... Ng7
{[%clk 0:00:02.1]} 49. Bb5+ {[%clk 0:01:00]} 49... Ke7 {[%clk 0:00:01.9]} 50.
Rc7+ {[%clk 0:01:00.2]} 50... Kf8 {[%clk 0:00:02.3]} 51. Nd5 {[%clk 0:00:59.2]}
51... Ne6 {[%clk 0:00:02.2]} 52. Rc8+ {[%clk 0:00:59.5]} 52... Kg7 {[%clk
0:00:02.1]} 53. Be8 {[%clk 0:01:00.4]} 53... Nxd4 {[%clk 0:00:01.6]} 54. Rc7
{[%clk 0:01:01.3]} 54... Nf5 {[%clk 0:00:01.8]} 55. Rxf7+ {[%clk 0:01:00.5]}
55... Kh6 {[%clk 0:00:02.3]} 56. Rxf5 {[%clk 0:01:01.2]} 56... gxf5 {[%clk
0:00:03.2]} 57. Bxh5 {[%clk 0:01:01.3]} 57... Kxh5 {[%clk 0:00:03.5]} 58. Ne3
{[%clk 0:01:02]} 58... Kg6 {[%clk 0:00:03.7]} 59. Ke2 {[%clk 0:01:01.5]} 59...
Kf7 {[%clk 0:00:03.8]} 60. Kf3 {[%clk 0:01:02]} 60... Ke6 {[%clk 0:00:04.7]} 61.
Kf4 {[%clk 0:01:02.9]} 61... Kf7 {[%clk 0:00:04.9]} 62. h5 {[%clk 0:01:03.8]}
62... Ke6 {[%clk 0:00:05.2]} 63. h6 {[%clk 0:01:03.8]} 63... Kf7 {[%clk
0:00:05.9]} 64. Kxf5 {[%clk 0:01:04.3]} 64... Kg8 {[%clk 0:00:06.3]} 65. g4
{[%clk 0:01:05.1]} 65... Kh7 {[%clk 0:00:07.2]} 66. Ng2 {[%clk 0:01:05.8]} 66...
Kg8 {[%clk 0:00:08.1]} 67. Nf4 {[%clk 0:01:06.7]} 67... Kh7 {[%clk 0:00:08.8]}
68. e6 {[%clk 0:01:07.6]} 68... Kg8 {[%clk 0:00:09.4]} 69. Kf6 {[%clk
0:01:08.5]} 69... Kh7 {[%clk 0:00:09.3]} 70. g5 {[%clk 0:00:55.2]} 70... Kg8
{[%clk 0:00:08.9]} 71. g6 {[%clk 0:00:55.1]} 71... Kh8 {[%clk 0:00:06.5]} 72.
Nd5 {[%clk 0:00:53.9]} 72... Kg8 {[%clk 0:00:06.9]} 73. Ne7+ {[%clk 0:00:52.8]}
73... Kf8 {[%clk 0:00:07.2]} 74. g7+ {[%clk 0:00:52.9]} 74... Ke8 {[%clk
0:00:07.7]} 75. g8=Q# {[%clk 0:00:53.2]} 1-0

[Event "Early-Titled-Tuesday-Blitz-September-26-2023"]
[Site "Chess.com"]
[Date "2023.09.26"]
[Round "2"]
[White "GeorgiosSouleidis"]
[Black "Mikasinski"]
[Result "1-0"]
[WhiteElo "2545"]
[BlackElo "2707"]
[TimeControl "180+1"]
[EndTime "8:18:40 PDT"]
[Termination "GeorgiosSouleidis won on time"]

1. e4 {[%clk 0:02:54.5]} 1... c5 {[%clk 0:02:53.3]} 2. Be2 {[%clk 0:02:54.4]}
2... g6 {[%clk 0:02:51.8]} 3. d3 {[%clk 0:02:54.3]} 3... Bg7 {[%clk 0:02:52]} 4.
f4 {[%clk 0:02:54.6]} 4... e6 {[%clk 0:02:52.3]} 5. Nf3 {[%clk 0:02:54.8]} 5...
Ne7 {[%clk 0:02:52.9]} 6. O-O {[%clk 0:02:54.8]} 6... O-O {[%clk 0:02:53.6]} 7.
c3 {[%clk 0:02:55.1]} 7... b6 {[%clk 0:02:54]} 8. Be3 {[%clk 0:02:55.3]} 8...
Bb7 {[%clk 0:02:54.5]} 9. Nbd2 {[%clk 0:02:55.5]} 9... d5 {[%clk 0:02:54.7]} 10.
e5 {[%clk 0:02:53.2]} 10... d4 {[%clk 0:02:43.4]} 11. cxd4 {[%clk 0:02:47.2]}
11... Nd5 {[%clk 0:02:43.7]} 12. Bf2 {[%clk 0:02:42.7]} 12... Nxf4 {[%clk
0:02:42.6]} 13. dxc5 {[%clk 0:02:40.9]} 13... Nxd3 {[%clk 0:02:39.5]} 14. Bxd3
{[%clk 0:02:20.9]} 14... Qxd3 {[%clk 0:02:40.4]} 15. Qb3 {[%clk 0:01:59.7]}
15... Rd8 {[%clk 0:02:25.7]} 16. cxb6 {[%clk 0:01:56.1]} 16... axb6 {[%clk
0:02:22.5]} 17. Bxb6 {[%clk 0:01:44.3]} 17... Qxb3 {[%clk 0:02:17.9]} 18. axb3
{[%clk 0:01:44.4]} 18... Rxa1 {[%clk 0:02:17]} 19. Rxa1 {[%clk 0:01:44.6]} 19...
Rc8 {[%clk 0:02:14.2]} 20. Nc4 {[%clk 0:01:27.2]} 20... Nd7 {[%clk 0:02:12.9]}
21. Bd4 {[%clk 0:01:20.3]} 21... Bd5 {[%clk 0:02:02.9]} 22. Ra7 {[%clk
0:01:10.8]} 22... Nc5 {[%clk 0:02:00.7]} 23. Nb6 {[%clk 0:00:48]} 23... Bxf3
{[%clk 0:00:58.9]} 24. Nxc8 {[%clk 0:00:41.5]} 24... Nxb3 {[%clk 0:00:58.6]} 25.
Bc3 {[%clk 0:00:22.5]} 25... Bf8 {[%clk 0:00:53.7]} 26. Nd6 {[%clk 0:00:21.4]}
26... Bd5 {[%clk 0:00:41.7]} 27. Rc7 {[%clk 0:00:20.5]} 27... f5 {[%clk
0:00:34.8]} 28. Kf1 {[%clk 0:00:16]} 28... f4 {[%clk 0:00:22.5]} 29. h4 {[%clk
0:00:11.2]} 29... h6 {[%clk 0:00:22.1]} 30. Kf2 {[%clk 0:00:11]} 30... g5 {[%clk
0:00:21.9]} 31. hxg5 {[%clk 0:00:11.2]} 31... hxg5 {[%clk 0:00:22.6]} 32. g3
{[%clk 0:00:11.5]} 32... f3 {[%clk 0:00:20.1]} 33. g4 {[%clk 0:00:12]} 33... Nc1
{[%clk 0:00:19.8]} 34. Ke3 {[%clk 0:00:10.3]} 34... Ne2 {[%clk 0:00:10.6]} 35.
Be1 {[%clk 0:00:10.4]} 35... Nf4 {[%clk 0:00:10.5]} 36. Bf2 {[%clk 0:00:06.8]}
36... Ng2+ {[%clk 0:00:08.3]} 37. Kd2 {[%clk 0:00:07.2]} 37... Nf4 {[%clk
0:00:06]} 38. b4 {[%clk 0:00:07.4]} 38... Ng6 {[%clk 0:00:06.5]} 39. Bd4 {[%clk
0:00:06.3]} 39... f2 {[%clk 0:00:04.5]} 40. Ke2 {[%clk 0:00:06.7]} 40... Nf4+
{[%clk 0:00:03.7]} 41. Kxf2 {[%clk 0:00:07.1]} 41... Nd3+ {[%clk 0:00:04.4]} 42.
Ke3 {[%clk 0:00:07.6]} 42... Nxb4 {[%clk 0:00:05.1]} 43. Bc5 {[%clk 0:00:07.3]}
43... Nc2+ {[%clk 0:00:05]} 44. Kd2 {[%clk 0:00:07.8]} 44... Na1 {[%clk
0:00:04.2]} 45. Kc3 {[%clk 0:00:07]} 45... Nb3 {[%clk 0:00:04.1]} 46. Bb4 {[%clk
0:00:07.4]} 46... Nc1 {[%clk 0:00:04.2]} 47. Rc8 {[%clk 0:00:07.1]} 47... Kg7
{[%clk 0:00:01.6]} 48. Kd2 {[%clk 0:00:05.5]} 48... Nb3+ {[%clk 0:00:01.6]} 49.
Kc3 {[%clk 0:00:05.6]} 49... Nc1 {[%clk 0:00:02.2]} 50. Ne8+ {[%clk 0:00:05.9]}
50... Kf7 {[%clk 0:00:01.7]} 51. Bxf8 {[%clk 0:00:06.8]} 51... Kxf8 {[%clk
0:00:01.8]} 52. Nf6+ {[%clk 0:00:07.2]} 52... Ke7 {[%clk 0:00:02.4]} 53. Nxd5+
{[%clk 0:00:07.8]} 53... exd5 {[%clk 0:00:02.9]} 54. Kd4 {[%clk 0:00:08.4]}
54... Ne2+ {[%clk 0:00:01.9]} 55. Kxd5 {[%clk 0:00:08.6]} 55... Nf4+ {[%clk
0:00:02.4]} 56. Ke4 {[%clk 0:00:08.9]} 56... Ke6 {[%clk 0:00:02.4]} 57. Rc6+
{[%clk 0:00:09]} 57... Kd7 {[%clk 0:00:02.8]} 58. Rf6 {[%clk 0:00:08.9]} 58...
Nh3 {[%clk 0:00:02.9]} 59. Kf5 {[%clk 0:00:08.2]} 59... Ke7 {[%clk 0:00:03.6]}
60. Ra6 {[%clk 0:00:07.9]} 60... Kd7 {[%clk 0:00:02.2]} 61. Ra7+ {[%clk
0:00:08.8]} 61... Kc6 {[%clk 0:00:02.4]} 62. e6 {[%clk 0:00:09]} 62... Nf4
{[%clk 0:00:02.3]} 63. e7 {[%clk 0:00:09.5]} 1-0

[Event "Early-Titled-Tuesday-Blitz-September-26-2023"]
[Site "Chess.com"]
[Date "2023.09.26"]
[Round "2"]
[White "TigranHH"]
[Black "wqws"]
[Result "0-1"]
[WhiteElo "2226"]
[BlackElo "2661"]
[TimeControl "180+1"]
[EndTime "8:18:40 PDT"]
[Termination "wqws won on time"]

1. d4 {[%clk 0:02:48.9]} 1... Nf6 {[%clk 0:03:00]} 2. c4 {[%clk 0:02:48.6]} 2...
g6 {[%clk 0:03:00.4]} 3. Nc3 {[%clk 0:02:48.5]} 3... Bg7 {[%clk 0:02:53.8]} 4.
e4 {[%clk 0:02:48.9]} 4... d6 {[%clk 0:02:53.8]} 5. h3 {[%clk 0:02:49.6]} 5...
O-O {[%clk 0:02:53.2]} 6. Be3 {[%clk 0:02:50.1]} 6... c6 {[%clk 0:02:52.9]} 7.
Bd3 {[%clk 0:02:42.1]} 7... e5 {[%clk 0:02:50.2]} 8. d5 {[%clk 0:02:42.1]} 8...
Nbd7 {[%clk 0:02:45.3]} 9. g4 {[%clk 0:02:37.5]} 9... Nc5 {[%clk 0:02:35.8]} 10.
Bc2 {[%clk 0:02:38]} 10... cxd5 {[%clk 0:02:32.6]} 11. cxd5 {[%clk 0:02:38.9]}
11... Bd7 {[%clk 0:02:26.5]} 12. Nge2 {[%clk 0:02:36.1]} 12... b5 {[%clk
0:02:24.6]} 13. b4 {[%clk 0:02:22.4]} 13... Na6 {[%clk 0:02:18.6]} 14. Rb1
{[%clk 0:02:12]} 14... Rc8 {[%clk 0:02:14.9]} 15. Qd2 {[%clk 0:02:12]} 15... h5
{[%clk 0:02:02.1]} 16. f3 {[%clk 0:01:51.1]} 16... h4 {[%clk 0:01:51.3]} 17. Bg5
{[%clk 0:01:41.2]} 17... Qb6 {[%clk 0:01:39.6]} 18. Bxh4 {[%clk 0:01:38.7]}
18... Rc4 {[%clk 0:01:37.5]} 19. a3 {[%clk 0:01:27.8]} 19... Rfc8 {[%clk
0:01:36.5]} 20. Rb3 {[%clk 0:01:26]} 20... Be8 {[%clk 0:01:27.2]} 21. Bf2 {[%clk
0:01:19.9]} 21... Qb7 {[%clk 0:01:26.2]} 22. Bd3 {[%clk 0:01:13.6]} 22... R4c7
{[%clk 0:01:13.9]} 23. h4 {[%clk 0:01:14.1]} 23... Nh7 {[%clk 0:00:47.3]} 24. h5
{[%clk 0:01:08.4]} 24... g5 {[%clk 0:00:47.3]} 25. h6 {[%clk 0:01:08.9]} 25...
Bf8 {[%clk 0:00:45.8]} 26. Ng3 {[%clk 0:00:46.4]} 26... f6 {[%clk 0:00:46]} 27.
Nf5 {[%clk 0:00:44.7]} 27... Nb8 {[%clk 0:00:45.7]} 28. Be3 {[%clk 0:00:38.3]}
28... Nd7 {[%clk 0:00:26.7]} 29. Ng7 {[%clk 0:00:35.5]} 29... Bxg7 {[%clk
0:00:20.6]} 30. hxg7 {[%clk 0:00:36.4]} 30... Nb6 {[%clk 0:00:20.8]} 31. Qh2
{[%clk 0:00:32]} 31... Rxg7 {[%clk 0:00:20.6]} 32. Qh6 {[%clk 0:00:30.6]} 32...
Nc4 {[%clk 0:00:20.2]} 33. Bf2 {[%clk 0:00:26]} 33... Qf7 {[%clk 0:00:19.2]} 34.
Ke2 {[%clk 0:00:22.9]} 34... a5 {[%clk 0:00:18.5]} 35. bxa5 {[%clk 0:00:22.3]}
35... Nxa5 {[%clk 0:00:19.4]} 36. Rxb5 {[%clk 0:00:17.3]} 36... Bxb5 {[%clk
0:00:18.7]} 37. Nxb5 {[%clk 0:00:18.2]} 37... Qd7 {[%clk 0:00:15.3]} 38. a4
{[%clk 0:00:16.4]} 38... Nb3 {[%clk 0:00:14.3]} 39. Rb1 {[%clk 0:00:13]} 39...
Nc1+ {[%clk 0:00:14.3]} 40. Kd2 {[%clk 0:00:10.5]} 40... Nxd3 {[%clk 0:00:14.1]}
41. Kxd3 {[%clk 0:00:11.4]} 41... Qb7 {[%clk 0:00:10.4]} 42. Be3 {[%clk
0:00:11.2]} 42... Qa6 {[%clk 0:00:10.2]} 43. Rb4 {[%clk 0:00:10.7]} 43... Rb8
{[%clk 0:00:07.1]} 44. Kc4 {[%clk 0:00:06.7]} 44... Rc8+ {[%clk 0:00:07.4]} 45.
Kb3 {[%clk 0:00:07.3]} 45... Rd8 {[%clk 0:00:05.8]} 46. Bd2 {[%clk 0:00:03.5]}
46... Rb7 {[%clk 0:00:05.4]} 47. Be3 {[%clk 0:00:03.3]} 47... Rc8 {[%clk
0:00:05.1]} 48. Qg6+ {[%clk 0:00:03.8]} 48... Rg7 {[%clk 0:00:05.1]} 49. Qf5
{[%clk 0:00:04.3]} 49... Re8 {[%clk 0:00:05.5]} 50. Bf2 {[%clk 0:00:02.8]} 50...
Qc8 {[%clk 0:00:05.8]} 51. a5 {[%clk 0:00:02.2]} 51... Qc1 {[%clk 0:00:05.8]}
52. a6 {[%clk 0:00:01.9]} 52... Qd1+ {[%clk 0:00:06.2]} 53. Ka3 {[%clk
0:00:01.8]} 53... Qc1+ {[%clk 0:00:05.8]} 54. Kb3 {[%clk 0:00:02]} 54... Qb1+
{[%clk 0:00:06.1]} 55. Ka3 {[%clk 0:00:01.9]} 55... Qa1+ {[%clk 0:00:06.6]} 56.
Kb3 {[%clk 0:00:02.3]} 56... Qxa6 {[%clk 0:00:06.9]} 57. Nc7 {[%clk 0:00:01.7]}
57... Qd3+ {[%clk 0:00:07.1]} 58. Ka4 {[%clk 0:00:01.5]} 58... Rxc7 {[%clk
0:00:07.1]} 0-1

[Event "Early-Titled-Tuesday-Blitz-September-26-2023"]
[Site "Chess.com"]
[Date "2023.09.26"]
[Round "2"]
[White "AlexPapasimakopoulos"]
[Black "Rap_woyska"]
[Result "0-1"]
[WhiteElo "2739"]
[BlackElo "2515"]
[TimeControl "180+1"]
[EndTime "8:18:40 PDT"]
[Termination "Rap_woyska won by checkmate"]

1. d4 {[%clk 0:02:52.9]} 1... Nf6 {[%clk 0:02:59.6]} 2. c4 {[%clk 0:02:52.6]}
2... c5 {[%clk 0:02:58.1]} 3. d5 {[%clk 0:02:52.7]} 3... b5 {[%clk 0:02:58.3]}
4. Nf3 {[%clk 0:02:52.9]} 4... e6 {[%clk 0:02:54.7]} 5. dxe6 {[%clk 0:02:50.7]}
5... fxe6 {[%clk 0:02:54.5]} 6. cxb5 {[%clk 0:02:51.1]} 6... a6 {[%clk
0:02:54.6]} 7. bxa6 {[%clk 0:02:50.9]} 7... Bxa6 {[%clk 0:02:54.3]} 8. g3 {[%clk
0:02:51.4]} 8... Nc6 {[%clk 0:02:53.3]} 9. Bg2 {[%clk 0:02:51.8]} 9... d5 {[%clk
0:02:52]} 10. O-O {[%clk 0:02:52.2]} 10... Bd6 {[%clk 0:02:51.7]} 11. b3 {[%clk
0:02:46.2]} 11... O-O {[%clk 0:02:50.7]} 12. Bb2 {[%clk 0:02:46.1]} 12... Qe7
{[%clk 0:02:34.2]} 13. Nc3 {[%clk 0:02:45.6]} 13... Rad8 {[%clk 0:02:32]} 14. a4
{[%clk 0:02:43.8]} 14... Nb4 {[%clk 0:02:29.3]} 15. Nb5 {[%clk 0:02:41.8]} 15...
Bb8 {[%clk 0:02:20.5]} 16. Ne5 {[%clk 0:02:32.2]} 16... Qe8 {[%clk 0:02:05.8]}
17. Nd3 {[%clk 0:01:56.6]} 17... Bxb5 {[%clk 0:01:38.7]} 18. Nxb4 {[%clk
0:01:54.8]} 18... cxb4 {[%clk 0:01:36.7]} 19. axb5 {[%clk 0:01:54.6]} 19... Qxb5
{[%clk 0:01:37.6]} 20. Qd3 {[%clk 0:01:50.1]} 20... Qxd3 {[%clk 0:01:33.3]} 21.
exd3 {[%clk 0:01:50]} 21... Kf7 {[%clk 0:01:26.9]} 22. Rfe1 {[%clk 0:01:49.2]}
22... Rfe8 {[%clk 0:01:26.9]} 23. f4 {[%clk 0:01:46.4]} 23... Rc8 {[%clk
0:01:20.2]} 24. Re2 {[%clk 0:01:42.5]} 24... Re7 {[%clk 0:01:14.1]} 25. Bd4
{[%clk 0:01:40.2]} 25... Bd6 {[%clk 0:01:11.6]} 26. Ra4 {[%clk 0:01:14.7]} 26...
h5 {[%clk 0:01:07.8]} 27. Bh3 {[%clk 0:01:11.2]} 27... Ng4 {[%clk 0:01:07.5]}
28. Bxg4 {[%clk 0:01:07.8]} 28... hxg4 {[%clk 0:01:08.4]} 29. Kf2 {[%clk
0:01:04.1]} 29... Rc1 {[%clk 0:01:05.1]} 30. Ra6 {[%clk 0:01:03.3]} 30... Rd7
{[%clk 0:01:03.8]} 31. Kg2 {[%clk 0:01:00.2]} 31... Rd1 {[%clk 0:01:01.2]} 32.
Be5 {[%clk 0:00:49.2]} 32... Bxe5 {[%clk 0:00:50]} 33. Rxe5 {[%clk 0:00:50.1]}
33... Rxd3 {[%clk 0:00:47.6]} 34. Raxe6 {[%clk 0:00:42]} 34... Rxb3 {[%clk
0:00:46.8]} 35. Rb6 {[%clk 0:00:41.8]} 35... d4 {[%clk 0:00:44.2]} 36. Re2
{[%clk 0:00:31.4]} 36... d3 {[%clk 0:00:32.4]} 37. Rd2 {[%clk 0:00:30.8]} 37...
Rb1 {[%clk 0:00:26.6]} 38. h3 {[%clk 0:00:23.2]} 38... gxh3+ {[%clk 0:00:26.2]}
39. Kxh3 {[%clk 0:00:24.1]} 39... b3 {[%clk 0:00:26.3]} 40. Kg4 {[%clk
0:00:24.5]} 40... b2 {[%clk 0:00:24]} 41. f5 {[%clk 0:00:15.2]} 41... Rd4+
{[%clk 0:00:19.1]} 42. Kg5 {[%clk 0:00:15.2]} 42... Rg1 {[%clk 0:00:19]} 43.
Rb7+ {[%clk 0:00:14.8]} 43... Kf8 {[%clk 0:00:18.9]} 44. Rb8+ {[%clk 0:00:11.6]}
44... Ke7 {[%clk 0:00:19.1]} 45. Rb7+ {[%clk 0:00:10.2]} 45... Kd6 {[%clk
0:00:19.2]} 46. Rbxb2 {[%clk 0:00:10.6]} 46... Rxg3+ {[%clk 0:00:18.8]} 47. Kh5
{[%clk 0:00:11.1]} 47... Ke5 {[%clk 0:00:15.3]} 48. Rb5+ {[%clk 0:00:09.1]}
48... Ke4 {[%clk 0:00:14.6]} 49. Rb7 {[%clk 0:00:07.4]} 49... Ke3 {[%clk
0:00:13]} 50. Rd1 {[%clk 0:00:07.7]} 50... d2 {[%clk 0:00:12.4]} 51. Re7+ {[%clk
0:00:08.4]} 51... Kd3 {[%clk 0:00:12.5]} 52. Ra7 {[%clk 0:00:06.2]} 52... Ke2
{[%clk 0:00:10.4]} 53. Raa1 {[%clk 0:00:04.4]} 53... Rd8 {[%clk 0:00:09.4]} 54.
Rxd2+ {[%clk 0:00:02.4]} 54... Rxd2 {[%clk 0:00:06.9]} 55. f6 {[%clk 0:00:02.1]}
55... gxf6 {[%clk 0:00:06.8]} 56. Rg1 {[%clk 0:00:01.9]} 56... Rxg1 {[%clk
0:00:06.2]} 57. Kh4 {[%clk 0:00:01.8]} 57... Rd8 {[%clk 0:00:05.9]} 58. Kh3
{[%clk 0:00:02.4]} 58... Rh8# {[%clk 0:00:06.6]} 0-1

[Event "Early-Titled-Tuesday-Blitz-September-26-2023"]
[Site "Chess.com"]
[Date "2023.09.26"]
[Round "2"]
[White "MasterKroket"]
[Black "Mariia89"]
[Result "1-0"]
[WhiteElo "2418"]
[BlackElo "2076"]
[TimeControl "180+1"]
[EndTime "8:18:58 PDT"]
[Termination "MasterKroket won by resignation"]

1. e4 {[%clk 0:03:00.9]} 1... c6 {[%clk 0:02:59.7]} 2. d4 {[%clk 0:03:00.3]}
2... d5 {[%clk 0:03:00.6]} 3. Nc3 {[%clk 0:02:59.9]} 3... dxe4 {[%clk
0:03:00.9]} 4. Nxe4 {[%clk 0:03:00.8]} 4... Nf6 {[%clk 0:03:01.8]} 5. Nxf6+
{[%clk 0:03:00.8]} 5... exf6 {[%clk 0:03:02.4]} 6. c3 {[%clk 0:03:00]} 6... Be7
{[%clk 0:03:02.1]} 7. Nf3 {[%clk 0:02:59.2]} 7... Bg4 {[%clk 0:03:01.2]} 8. Be2
{[%clk 0:02:59.2]} 8... Na6 {[%clk 0:02:59.6]} 9. O-O {[%clk 0:02:59.1]} 9...
Nc7 {[%clk 0:02:59.5]} 10. h3 {[%clk 0:02:54.6]} 10... Bh5 {[%clk 0:02:58.9]}
11. Bf4 {[%clk 0:02:52.7]} 11... Nd5 {[%clk 0:02:57.6]} 12. Bh2 {[%clk
0:02:52.2]} 12... O-O {[%clk 0:02:57.4]} 13. Nd2 {[%clk 0:02:50.1]} 13... Bxe2
{[%clk 0:02:54.9]} 14. Qxe2 {[%clk 0:02:51]} 14... Re8 {[%clk 0:02:55.3]} 15.
Qd3 {[%clk 0:02:48]} 15... Bd6 {[%clk 0:02:52.5]} 16. Bxd6 {[%clk 0:02:41]}
16... Qxd6 {[%clk 0:02:52]} 17. Rfe1 {[%clk 0:02:39]} 17... g6 {[%clk
0:02:44.9]} 18. a3 {[%clk 0:02:29.2]} 18... Qd7 {[%clk 0:02:30.9]} 19. Qf3
{[%clk 0:02:24.2]} 19... Kg7 {[%clk 0:02:29.1]} 20. Re4 {[%clk 0:02:21.8]} 20...
Re7 {[%clk 0:02:05.4]} 21. Rae1 {[%clk 0:02:19.9]} 21... Rae8 {[%clk 0:02:04.5]}
22. c4 {[%clk 0:01:58.3]} 22... Nc7 {[%clk 0:01:56.2]} 23. Rxe7 {[%clk
0:01:46.2]} 23... Rxe7 {[%clk 0:01:55.3]} 24. Rxe7 {[%clk 0:01:46.6]} 24... Qxe7
{[%clk 0:01:55.1]} 25. Qe3 {[%clk 0:01:46]} 25... Qd6 {[%clk 0:01:41.4]} 26. Ne4
{[%clk 0:01:44.6]} 26... Qe6 {[%clk 0:01:37.4]} 27. Qf4 {[%clk 0:01:31.7]} 27...
Ne8 {[%clk 0:01:24.4]} 28. c5 {[%clk 0:01:10.7]} 28... h6 {[%clk 0:00:48]} 29.
Kh2 {[%clk 0:01:01.2]} 29... Qd5 {[%clk 0:00:31.6]} 30. Nc3 {[%clk 0:00:59.1]}
30... Qd8 {[%clk 0:00:24.4]} 31. Qe4 {[%clk 0:00:48.1]} 31... Nc7 {[%clk
0:00:23.2]} 32. b4 {[%clk 0:00:48.8]} 32... Ne6 {[%clk 0:00:17]} 33. d5 {[%clk
0:00:46.3]} 33... Ng5 {[%clk 0:00:17.2]} 34. Qd3 {[%clk 0:00:38.7]} 34... cxd5
{[%clk 0:00:17.2]} 35. Qxd5 {[%clk 0:00:36.4]} 35... Qc7+ {[%clk 0:00:17]} 36.
Qd6 {[%clk 0:00:27.3]} 36... Qxd6+ {[%clk 0:00:13.9]} 37. cxd6 {[%clk
0:00:28.2]} 37... Kf8 {[%clk 0:00:14.4]} 38. Nb5 {[%clk 0:00:28.5]} 38... a6
{[%clk 0:00:13.4]} 39. Nc7 {[%clk 0:00:28.8]} 39... Ne4 {[%clk 0:00:11.5]} 40.
Nd5 {[%clk 0:00:16.4]} 40... Nxd6 {[%clk 0:00:10.5]} 41. Nxf6 {[%clk 0:00:16.8]}
41... Ke7 {[%clk 0:00:08.6]} 42. Nd5+ {[%clk 0:00:15.9]} 42... Kd7 {[%clk
0:00:08.9]} 43. Kg3 {[%clk 0:00:15.7]} 43... Kc6 {[%clk 0:00:08.4]} 44. Nc3
{[%clk 0:00:15.5]} 44... f5 {[%clk 0:00:05.7]} 45. Kf4 {[%clk 0:00:15.1]} 45...
Nc4 {[%clk 0:00:06.4]} 46. a4 {[%clk 0:00:15.1]} 46... Kd6 {[%clk 0:00:05]} 47.
g4 {[%clk 0:00:14.8]} 47... Ke6 {[%clk 0:00:05.4]} 48. g5 {[%clk 0:00:14.4]}
48... h5 {[%clk 0:00:04.3]} 49. b5 {[%clk 0:00:15.1]} 49... a5 {[%clk
0:00:04.2]} 50. f3 {[%clk 0:00:13.9]} 50... Nd6 {[%clk 0:00:02.9]} 51. Ke3
{[%clk 0:00:11.6]} 51... Nc8 {[%clk 0:00:03.5]} 52. Kd4 {[%clk 0:00:11.6]} 52...
Kd6 {[%clk 0:00:03.6]} 53. Nd5 {[%clk 0:00:11.6]} 53... Ne7 {[%clk 0:00:00.8]}
54. Nxe7 {[%clk 0:00:11.4]} 54... Kxe7 {[%clk 0:00:01.7]} 55. Ke5 {[%clk
0:00:12]} 55... b6 {[%clk 0:00:01.9]} 56. h4 {[%clk 0:00:11.9]} 56... Kd7 {[%clk
0:00:01.7]} 57. Kf6 {[%clk 0:00:12.2]} 57... Kd6 {[%clk 0:00:02.5]} 58. Kxg6
{[%clk 0:00:12.9]} 58... Kc5 {[%clk 0:00:03]} 59. Kxf5 {[%clk 0:00:13.3]} 59...
Kb4 {[%clk 0:00:03.9]} 60. g6 {[%clk 0:00:14.2]} 60... Kxa4 {[%clk 0:00:04.6]}
61. g7 {[%clk 0:00:15.1]} 61... Kxb5 {[%clk 0:00:05.4]} 62. g8=Q {[%clk
0:00:16]} 62... a4 {[%clk 0:00:06]} 63. Qa2 {[%clk 0:00:15.7]} 63... Kb4 {[%clk
0:00:06.5]} 64. Ke5 {[%clk 0:00:15.9]} 64... b5 {[%clk 0:00:06.8]} 65. f4 {[%clk
0:00:16.4]} 65... Kc3 {[%clk 0:00:07.2]} 66. f5 {[%clk 0:00:16.2]} 66... b4
{[%clk 0:00:08.1]} 67. Qxa4 {[%clk 0:00:16.7]} 67... b3 {[%clk 0:00:08.7]} 68.
Qxb3+ {[%clk 0:00:17.1]} 68... Kxb3 {[%clk 0:00:09.1]} 69. f6 {[%clk 0:00:18]}
1-0